[Event "Titled Tuesday Blitz February 07 Early 2023"]
[White "Bolanos, Fernando"]
[Black "Qashashvili, Alexandre"]
[WhiteFideId "3304094"]
[BlackFideId "13600842"]
[WhiteElo "2248"]
[BlackElo "2505"]
[Result "1-0"]
[Round "06"]
[TimeControl "180+2"]
[Date "2023.02.07"]
[WhiteClock "0:00:22"]
[BlackClock "0:00:32"]

1. e4 {[%clk 0:02:51]}  c6 {[%clk 0:03:00]} 2. d4 {[%clk 0:02:46]}  d5 {[%clk 0:03:00]} 3. e5 {[%clk 0:02:46]}  Bf5 {[%clk 0:03:00]} 4. h4 {[%clk 0:02:47]}  h5 {[%clk 0:03:00]} 5. Bg5 {[%clk 0:02:47]}  Qb6 {[%clk 0:02:59]} 6. Bd3 {[%clk 0:02:48]}  Bxd3 {[%clk 0:02:59]} 7. Qxd3 {[%clk 0:02:48]}  e6 {[%clk 0:02:59]} 8. Nf3 {[%clk 0:02:29]}  Be7 {[%clk 0:02:59]} 9. O-O {[%clk 0:02:26]}  Nd7 {[%clk 0:02:58]} 10. c4 {[%clk 0:02:25]}  dxc4 {[%clk 0:02:57]} 11. Qxc4 {[%clk 0:02:24]}  Bxg5 {[%clk 0:02:57]} 12. hxg5 {[%clk 0:02:22]}  Ne7 {[%clk 0:02:57]} 13. Nc3 {[%clk 0:02:21]}  g6 {[%clk 0:02:57]} 14. Ne4 {[%clk 0:02:21]}  Nf5 {[%clk 0:02:56]} 15. b4 {[%clk 0:02:13]}  O-O {[%clk 0:02:56]} 16. Rab1 {[%clk 0:02:12]}  Qb5 {[%clk 0:02:56]} 17. Qxb5 {[%clk 0:02:12]}  cxb5 {[%clk 0:02:57]} 18. Rbc1 {[%clk 0:02:06]}  Rfc8 {[%clk 0:02:54]} 19. Nd6 {[%clk 0:01:57]}  Nxd6 {[%clk 0:02:53]} 20. exd6 {[%clk 0:01:57]}  Rc4 {[%clk 0:02:51]} 21. Ne5 {[%clk 0:01:50]}  Nxe5 {[%clk 0:02:49]} 22. dxe5 {[%clk 0:01:51]}  Rxb4 {[%clk 0:02:49]} 23. Rc7 {[%clk 0:01:50]}  Rd4 {[%clk 0:02:36]} 24. Rxb7 {[%clk 0:01:49]}  a6 {[%clk 0:02:36]} 25. Rc1 {[%clk 0:01:46]}  Kg7 {[%clk 0:01:43]} 26. Rcc7 {[%clk 0:01:27]}  Rf8 {[%clk 0:01:42]} 27. Re7 {[%clk 0:01:28]}  b4 {[%clk 0:01:35]} 28. Rxe6 {[%clk 0:01:18]}  Rf4 {[%clk 0:01:24]} 29. Ree7 {[%clk 0:01:01]}  Rd4 {[%clk 0:01:19]} 30. d7 {[%clk 0:00:54]}  a5 {[%clk 0:01:11]} 31. e6 {[%clk 0:00:50]}  Kg8 {[%clk 0:01:05]} 32. Re8 {[%clk 0:00:29]}  Rd1+ {[%clk 0:00:59]} 33. Kh2 {[%clk 0:00:29]}  fxe6 {[%clk 0:00:57]} 34. Rbb8 {[%clk 0:00:28]}  Rxd7 {[%clk 0:00:49]} 35. Rxf8+ {[%clk 0:00:27]}  Kg7 {[%clk 0:00:45]} 36. Rg8+ {[%clk 0:00:21]}  Kf7 {[%clk 0:00:39]} 37. Rbf8+ {[%clk 0:00:20]}  Ke7 {[%clk 0:00:38]} 38. Rg7+ {[%clk 0:00:20]}  Kd6 {[%clk 0:00:28]} 39. Rxd7+ {[%clk 0:00:21]}  Kxd7 {[%clk 0:00:28]} 40. Ra8 {[%clk 0:00:20]}  Kc6 {[%clk 0:00:27]} 41. Rxa5 {[%clk 0:00:20]}  Kb6 {[%clk 0:00:26]} 42. Re5 {[%clk 0:00:21]}  Kc7 {[%clk 0:00:25]} 43. Rxe6 {[%clk 0:00:21]}  b3 {[%clk 0:00:24]} 44. axb3 {[%clk 0:00:21]}  Kd7 {[%clk 0:00:25]} 45. Rxg6 {[%clk 0:00:21]}  Ke7 {[%clk 0:00:25]} 46. Rf6 {[%clk 0:00:20]}  h4 {[%clk 0:00:26]} 47. Kh3 {[%clk 0:00:19]}  Kd7 {[%clk 0:00:27]} 48. Kxh4 {[%clk 0:00:19]}  Ke7 {[%clk 0:00:28]} 49. Kg4 {[%clk 0:00:19]}  Kd7 {[%clk 0:00:29]} 50. Kf5 {[%clk 0:00:20]}  Ke7 {[%clk 0:00:30]} 51. g6 {[%clk 0:00:20]}  Kd7 {[%clk 0:00:30]} 52. g7 {[%clk 0:00:21]}  Ke7 {[%clk 0:00:31]} 53. g8=Q {[%clk 0:00:21]}  Kd7 {[%clk 0:00:32]} 54. Qg7+ {[%clk 0:00:21]}  Ke8 {[%clk 0:00:32]} 55. Rf8# {[%clk 0:00:22]} 1-0


[Site "https://www.chess.com"]

[Event "Titled Tuesday Blitz February 07 Early 2023"]
[White "Winkels, Marcel"]
[Black "Quirke, Jeffrey"]
[WhiteFideId "1003887"]
[BlackFideId "2013029"]
[WhiteElo "1960"]
[BlackElo "2007"]
[Result "1-0"]
[Round "06"]
[TimeControl "180+2"]
[Date "2023.02.07"]
[WhiteClock "0:01:33"]
[BlackClock "0:00:29"]

1. d4 {[%clk 0:03:00]}  g6 {[%clk 0:02:59]} 2. e4 {[%clk 0:02:59]}  Bg7 {[%clk 0:02:58]} 3. Nc3 {[%clk 0:02:59]}  d5 {[%clk 0:02:57]} 4. Nf3 {[%clk 0:02:55]}  dxe4 {[%clk 0:02:55]} 5. Nxe4 {[%clk 0:02:54]}  Nf6 {[%clk 0:02:56]} 6. Nxf6+ {[%clk 0:02:53]}  exf6 {[%clk 0:02:55]} 7. Bc4 {[%clk 0:02:47]}  O-O {[%clk 0:02:54]} 8. O-O {[%clk 0:02:47]}  c6 {[%clk 0:02:54]} 9. Re1 {[%clk 0:02:44]}  Nd7 {[%clk 0:02:50]} 10. c3 {[%clk 0:02:42]}  Qc7 {[%clk 0:02:34]} 11. g3 {[%clk 0:02:41]}  b5 {[%clk 0:02:29]} 12. Bf4 {[%clk 0:02:39]}  Qb6 {[%clk 0:02:22]} 13. Bb3 {[%clk 0:02:39]}  a5 {[%clk 0:02:05]} 14. a3 {[%clk 0:02:36]}  Bb7 {[%clk 0:01:52]} 15. Re7 {[%clk 0:02:34]}  Rad8 {[%clk 0:01:41]} 16. Bd6 {[%clk 0:02:25]}  c5 {[%clk 0:01:35]} 17. Bf4 {[%clk 0:01:57]}  cxd4 {[%clk 0:01:08]} 18. Nxd4 {[%clk 0:01:54]}  Nc5 {[%clk 0:01:04]} 19. Bc7 {[%clk 0:01:46]}  Rxd4 {[%clk 0:00:30]} 20. Bxb6 {[%clk 0:01:34]}  Rxd1+ {[%clk 0:00:29]} 21. Bxd1 {[%clk 0:01:33]} 1-0


[Site "https://www.chess.com"]

[Event "Titled Tuesday Blitz February 07 Early 2023"]
[White "Zierk, Steven"]
[Black "Kamsky, Gata"]
[WhiteFideId "2034255"]
[BlackFideId "2000024"]
[WhiteElo "2488"]
[BlackElo "2665"]
[Result "1/2-1/2"]
[Round "07"]
[TimeControl "180+2"]
[Date "2023.02.07"]
[WhiteClock "0:00:58"]
[BlackClock "0:01:09"]

1. e4 {[%clk 0:03:00]}  c5 {[%clk 0:02:55]} 2. Nf3 {[%clk 0:03:00]}  e6 {[%clk 0:02:51]} 3. d4 {[%clk 0:03:01]}  cxd4 {[%clk 0:02:50]} 4. Nxd4 {[%clk 0:03:01]}  a6 {[%clk 0:02:46]} 5. c4 {[%clk 0:03:00]}  Nf6 {[%clk 0:02:33]} 6. Nc3 {[%clk 0:02:59]}  Qc7 {[%clk 0:02:33]} 7. a3 {[%clk 0:02:59]}  b6 {[%clk 0:02:33]} 8. Be2 {[%clk 0:02:58]}  Bb7 {[%clk 0:02:33]} 9. Be3 {[%clk 0:02:56]}  d6 {[%clk 0:02:26]} 10. f3 {[%clk 0:02:56]}  Nbd7 {[%clk 0:02:26]} 11. O-O {[%clk 0:02:55]}  Be7 {[%clk 0:02:25]} 12. Rc1 {[%clk 0:02:55]}  Rc8 {[%clk 0:02:24]} 13. b4 {[%clk 0:02:52]}  h5 {[%clk 0:02:21]} 14. Qd2 {[%clk 0:02:40]}  h4 {[%clk 0:02:18]} 15. Bg5 {[%clk 0:02:28]}  Qd8 {[%clk 0:02:02]} 16. Be3 {[%clk 0:02:00]}  Qc7 {[%clk 0:02:00]} 17. Nb3 {[%clk 0:02:00]}  Qb8 {[%clk 0:01:54]} 18. Rfd1 {[%clk 0:01:56]}  Ne5 {[%clk 0:01:33]} 19. Na4 {[%clk 0:01:48]}  Nfd7 {[%clk 0:01:33]} 20. f4 {[%clk 0:01:32]}  Ng6 {[%clk 0:01:30]} 21. Bf3 {[%clk 0:01:26]}  Bc6 {[%clk 0:01:29]} 22. Nc3 {[%clk 0:01:25]}  Ba8 {[%clk 0:01:18]} 23. Na4 {[%clk 0:01:16]}  Bc6 {[%clk 0:01:11]} 24. Nc3 {[%clk 0:01:10]}  Ba8 {[%clk 0:01:11]} 25. Na4 {[%clk 0:00:58]}  Bc6 {[%clk 0:01:09]} 1/2-1/2


[Site "https://www.chess.com"]

[Event "Titled Tuesday Blitz February 07 Early 2023"]
[White "So, Wesley"]
[Black "Bruzon Batista, Lazaro"]
[WhiteFideId "5202213"]
[BlackFideId "3503739"]
[WhiteElo "2760"]
[BlackElo "2611"]
[Result "1-0"]
[Round "07"]
[TimeControl "180+2"]
[Date "2023.02.07"]
[WhiteClock "0:00:33"]
[BlackClock "0:00:03"]

1. d4 {[%clk 0:03:00]}  Nf6 {[%clk 0:02:59]} 2. c4 {[%clk 0:02:58]}  e6 {[%clk 0:02:59]} 3. Nc3 {[%clk 0:02:57]}  d5 {[%clk 0:02:59]} 4. Bg5 {[%clk 0:02:55]}  Be7 {[%clk 0:02:57]} 5. Rc1 {[%clk 0:02:55]}  h6 {[%clk 0:02:56]} 6. Bh4 {[%clk 0:02:54]}  O-O {[%clk 0:02:55]} 7. e3 {[%clk 0:02:54]}  Nbd7 {[%clk 0:02:54]} 8. cxd5 {[%clk 0:02:53]}  exd5 {[%clk 0:02:52]} 9. Bd3 {[%clk 0:02:49]}  c6 {[%clk 0:02:52]} 10. Nf3 {[%clk 0:02:48]}  Ne4 {[%clk 0:02:50]} 11. Bxe7 {[%clk 0:02:43]}  Qxe7 {[%clk 0:02:50]} 12. O-O {[%clk 0:02:44]}  Ndf6 {[%clk 0:02:48]} 13. Ne5 {[%clk 0:02:39]}  Bf5 {[%clk 0:02:45]} 14. Qc2 {[%clk 0:02:34]}  Rfe8 {[%clk 0:02:29]} 15. a3 {[%clk 0:02:15]}  Nxc3 {[%clk 0:02:13]} 16. bxc3 {[%clk 0:02:05]}  Bxd3 {[%clk 0:02:11]} 17. Nxd3 {[%clk 0:02:06]}  Ne4 {[%clk 0:01:59]} 18. a4 {[%clk 0:01:59]}  b6 {[%clk 0:01:49]} 19. Rfd1 {[%clk 0:01:51]}  Nd6 {[%clk 0:01:48]} 20. Nb2 {[%clk 0:01:51]}  Rac8 {[%clk 0:01:46]} 21. c4 {[%clk 0:01:48]}  dxc4 {[%clk 0:01:41]} 22. Nxc4 {[%clk 0:01:49]}  Nxc4 {[%clk 0:01:38]} 23. Qxc4 {[%clk 0:01:50]}  c5 {[%clk 0:01:39]} 24. Qa6 {[%clk 0:01:45]}  Rc7 {[%clk 0:01:36]} 25. dxc5 {[%clk 0:01:43]}  bxc5 {[%clk 0:01:35]} 26. h3 {[%clk 0:01:37]}  g6 {[%clk 0:01:30]} 27. Rd5 {[%clk 0:01:33]}  Rb8 {[%clk 0:01:25]} 28. Qc4 {[%clk 0:01:29]}  Rb4 {[%clk 0:01:21]} 29. Qd3 {[%clk 0:01:19]}  Rb8 {[%clk 0:01:08]} 30. a5 {[%clk 0:01:17]}  h5 {[%clk 0:01:04]} 31. Rc4 {[%clk 0:01:12]}  Rbc8 {[%clk 0:00:49]} 32. g3 {[%clk 0:01:10]}  Qf6 {[%clk 0:00:44]} 33. Kg2 {[%clk 0:01:08]}  Qa6 {[%clk 0:00:41]} 34. Qc3 {[%clk 0:01:00]}  Qb7 {[%clk 0:00:39]} 35. e4 {[%clk 0:01:00]}  Qb5 {[%clk 0:00:38]} 36. g4 {[%clk 0:00:56]}  hxg4 {[%clk 0:00:36]} 37. hxg4 {[%clk 0:00:57]}  Qc6 {[%clk 0:00:32]} 38. f3 {[%clk 0:00:49]}  Qe6 {[%clk 0:00:30]} 39. Rcxc5 {[%clk 0:00:46]}  Rxc5 {[%clk 0:00:30]} 40. Rxc5 {[%clk 0:00:47]}  Qa2+ {[%clk 0:00:29]} 41. Kg3 {[%clk 0:00:46]}  Rxc5 {[%clk 0:00:17]} 42. Qxc5 {[%clk 0:00:47]}  Qe2 {[%clk 0:00:15]} 43. Qxa7 {[%clk 0:00:40]}  Qe1+ {[%clk 0:00:15]} 44. Kg2 {[%clk 0:00:40]}  Qd2+ {[%clk 0:00:15]} 45. Kh3 {[%clk 0:00:41]}  Qf4 {[%clk 0:00:08]} 46. Qf2 {[%clk 0:00:38]}  Qd6 {[%clk 0:00:04]} 47. Qa2 {[%clk 0:00:35]}  Qf4 {[%clk 0:00:03]} 48. Kg2 {[%clk 0:00:33]} 1-0


[Site "https://www.chess.com"]

[Event "Titled Tuesday Blitz February 07 Early 2023"]
[White "Avinash, Ramesh"]
[Black "Bachmann, Axel"]
[WhiteFideId "45018340"]
[BlackFideId "3700488"]
[WhiteElo "2319"]
[BlackElo "2604"]
[Result "1-0"]
[Round "07"]
[TimeControl "180+2"]
[Date "2023.02.07"]
[WhiteClock "0:00:10"]
[BlackClock "0:00:06"]

1. e4 {[%clk 0:02:59]}  e5 {[%clk 0:02:59]} 2. Nf3 {[%clk 0:02:57]}  Nf6 {[%clk 0:02:56]} 3. Nxe5 {[%clk 0:02:56]}  d6 {[%clk 0:02:57]} 4. Nd3 {[%clk 0:02:54]}  Nxe4 {[%clk 0:02:56]} 5. Qe2 {[%clk 0:02:54]}  Qe7 {[%clk 0:02:56]} 6. Nf4 {[%clk 0:02:49]}  c6 {[%clk 0:02:57]} 7. h4 {[%clk 0:02:46]}  d5 {[%clk 0:02:48]} 8. d3 {[%clk 0:02:43]}  Nf6 {[%clk 0:02:48]} 9. Nc3 {[%clk 0:02:40]}  Na6 {[%clk 0:02:45]} 10. Bd2 {[%clk 0:02:33]}  Qxe2+ {[%clk 0:02:35]} 11. Bxe2 {[%clk 0:02:33]}  Bd6 {[%clk 0:02:36]} 12. O-O-O {[%clk 0:02:27]}  O-O {[%clk 0:02:36]} 13. d4 {[%clk 0:02:24]}  Nc7 {[%clk 0:02:27]} 14. Nd3 {[%clk 0:02:24]}  Ne4 {[%clk 0:02:14]} 15. Nxe4 {[%clk 0:02:17]}  dxe4 {[%clk 0:02:15]} 16. Nf4 {[%clk 0:02:17]}  Re8 {[%clk 0:02:12]} 17. Be3 {[%clk 0:02:16]}  Nd5 {[%clk 0:01:56]} 18. Nxd5 {[%clk 0:02:11]}  cxd5 {[%clk 0:01:57]} 19. Kb1 {[%clk 0:02:11]}  Be6 {[%clk 0:01:45]} 20. h5 {[%clk 0:02:09]}  f5 {[%clk 0:01:44]} 21. g3 {[%clk 0:02:06]}  Rf8 {[%clk 0:01:44]} 22. h6 {[%clk 0:02:01]}  g6 {[%clk 0:01:38]} 23. Bf4 {[%clk 0:02:02]}  Bxf4 {[%clk 0:01:36]} 24. gxf4 {[%clk 0:02:02]}  Rac8 {[%clk 0:01:36]} 25. c3 {[%clk 0:01:59]}  Kf7 {[%clk 0:01:36]} 26. Kc2 {[%clk 0:01:56]}  Kf6 {[%clk 0:01:37]} 27. Kd2 {[%clk 0:01:57]}  Rc6 {[%clk 0:01:37]} 28. Ke3 {[%clk 0:01:51]}  b5 {[%clk 0:01:30]} 29. Bxb5 {[%clk 0:01:48]}  Rb6 {[%clk 0:01:30]} 30. a4 {[%clk 0:01:47]}  a6 {[%clk 0:01:30]} 31. Be2 {[%clk 0:01:45]}  Rxb2 {[%clk 0:01:27]} 32. Bxa6 {[%clk 0:01:39]}  Bd7 {[%clk 0:01:27]} 33. Rb1 {[%clk 0:01:35]}  Rfb8 {[%clk 0:01:25]} 34. Bb5 {[%clk 0:01:35]}  Rxb1 {[%clk 0:01:16]} 35. Rxb1 {[%clk 0:01:34]}  Ke7 {[%clk 0:01:09]} 36. Kd2 {[%clk 0:01:32]}  Kd6 {[%clk 0:01:05]} 37. Rb4 {[%clk 0:01:32]}  Be6 {[%clk 0:00:32]} 38. a5 {[%clk 0:01:25]}  Ra8 {[%clk 0:00:32]} 39. a6 {[%clk 0:01:18]}  Kc7 {[%clk 0:00:31]} 40. Be2 {[%clk 0:01:12]}  Bc8 {[%clk 0:00:29]} 41. Ra4 {[%clk 0:01:11]}  Kb6 {[%clk 0:00:30]} 42. c4 {[%clk 0:01:10]}  dxc4 {[%clk 0:00:26]} 43. Bxc4 {[%clk 0:01:05]}  Bd7 {[%clk 0:00:18]} 44. Ra1 {[%clk 0:01:04]}  Rc8 {[%clk 0:00:17]} 45. Rb1+ {[%clk 0:01:02]}  Ka5 {[%clk 0:00:12]} 46. Be2 {[%clk 0:01:01]}  Ba4 {[%clk 0:00:10]} 47. Rc1 {[%clk 0:00:56]}  Rb8 {[%clk 0:00:05]} 48. Rc5+ {[%clk 0:00:50]}  Kb6 {[%clk 0:00:05]} 49. Re5 {[%clk 0:00:34]}  Rc8 {[%clk 0:00:04]} 50. Re6+ {[%clk 0:00:31]}  Ka7 {[%clk 0:00:05]} 51. d5 {[%clk 0:00:30]}  Rc2+ {[%clk 0:00:04]} 52. Ke3 {[%clk 0:00:30]}  Rc3+ {[%clk 0:00:04]} 53. Kd4 {[%clk 0:00:30]}  Rc2 {[%clk 0:00:05]} 54. Re7+ {[%clk 0:00:29]}  Ka8 {[%clk 0:00:05]} 55. Bf1 {[%clk 0:00:24]}  Rxf2 {[%clk 0:00:05]} 56. Rxh7 {[%clk 0:00:20]}  Rxf1 {[%clk 0:00:04]} 57. Rg7 {[%clk 0:00:20]}  Rd1+ {[%clk 0:00:04]} 58. Ke3 {[%clk 0:00:20]}  Re1+ {[%clk 0:00:05]} 59. Kf2 {[%clk 0:00:20]}  Rh1 {[%clk 0:00:05]} 60. h7 {[%clk 0:00:20]}  Bb3 {[%clk 0:00:05]} 61. Rg8+ {[%clk 0:00:20]}  Ka7 {[%clk 0:00:05]} 62. h8=Q {[%clk 0:00:21]}  Rxh8 {[%clk 0:00:05]} 63. Rxh8 {[%clk 0:00:21]}  Bxd5 {[%clk 0:00:06]} 64. Rh6 {[%clk 0:00:21]}  Kxa6 {[%clk 0:00:05]} 65. Rxg6+ {[%clk 0:00:22]}  Kb5 {[%clk 0:00:06]} 66. Rf6 {[%clk 0:00:21]}  Kc4 {[%clk 0:00:07]} 67. Ke3 {[%clk 0:00:21]}  Kc5 {[%clk 0:00:06]} 68. Rxf5 {[%clk 0:00:21]}  Kd6 {[%clk 0:00:07]} 69. Re5 {[%clk 0:00:20]}  Bb7 {[%clk 0:00:07]} 70. Rh5 {[%clk 0:00:19]}  Ke6 {[%clk 0:00:07]} 71. Rb5 {[%clk 0:00:16]}  Ba8 {[%clk 0:00:06]} 72. Kd4 {[%clk 0:00:15]}  Kf6 {[%clk 0:00:06]} 73. Ra5 {[%clk 0:00:12]}  Bb7 {[%clk 0:00:06]} 74. Ra7 {[%clk 0:00:12]}  Bc8 {[%clk 0:00:06]} 75. Kxe4 {[%clk 0:00:11]}  Bf5+ {[%clk 0:00:07]} 76. Ke3 {[%clk 0:00:12]}  Bb1 {[%clk 0:00:08]} 77. Ra6+ {[%clk 0:00:12]}  Kf5 {[%clk 0:00:08]} 78. Ra5+ {[%clk 0:00:12]}  Kf6 {[%clk 0:00:08]} 79. Rb5 {[%clk 0:00:13]}  Ba2 {[%clk 0:00:08]} 80. Ke4 {[%clk 0:00:11]}  Kf7 {[%clk 0:00:07]} 81. Rb6 {[%clk 0:00:11]}  Ke7 {[%clk 0:00:07]} 82. Ke5 {[%clk 0:00:12]}  Kf7 {[%clk 0:00:07]} 83. f5 {[%clk 0:00:12]}  Bc4 {[%clk 0:00:07]} 84. Rb7+ {[%clk 0:00:12]}  Kf8 {[%clk 0:00:07]} 85. Rc7 {[%clk 0:00:13]}  Ba2 {[%clk 0:00:06]} 86. Kf6 {[%clk 0:00:13]}  Ke8 {[%clk 0:00:06]} 87. Ra7 {[%clk 0:00:13]}  Bd5 {[%clk 0:00:06]} 88. Kg7 {[%clk 0:00:10]} 1-0


[Site "https://www.chess.com"]

[Event "Titled Tuesday Blitz February 07 Early 2023"]
[White "Samunenkov, Ihor"]
[Black "Orozbaev, Eldiar"]
[WhiteFideId "14187086"]
[BlackFideId "13802240"]
[WhiteElo "2501"]
[BlackElo "2235"]
[Result "1/2-1/2"]
[Round "07"]
[TimeControl "180+2"]
[Date "2023.02.07"]
[WhiteClock "0:00:05"]
[BlackClock "0:00:06"]

1. d4 {[%clk 0:03:00]}  d5 {[%clk 0:02:58]} 2. c4 {[%clk 0:03:01]}  dxc4 {[%clk 0:02:58]} 3. Nf3 {[%clk 0:03:00]}  Nf6 {[%clk 0:02:58]} 4. e3 {[%clk 0:03:01]}  e6 {[%clk 0:02:59]} 5. Bxc4 {[%clk 0:03:01]}  a6 {[%clk 0:02:59]} 6. O-O {[%clk 0:03:01]}  c5 {[%clk 0:02:58]} 7. Be2 {[%clk 0:03:02]}  Nc6 {[%clk 0:02:56]} 8. dxc5 {[%clk 0:02:59]}  Qxd1 {[%clk 0:02:55]} 9. Rxd1 {[%clk 0:02:59]}  Bxc5 {[%clk 0:02:56]} 10. a3 {[%clk 0:02:43]}  O-O {[%clk 0:02:52]} 11. b4 {[%clk 0:02:43]}  Be7 {[%clk 0:02:53]} 12. Nc3 {[%clk 0:02:34]}  b5 {[%clk 0:02:37]} 13. Nd2 {[%clk 0:02:20]}  Bb7 {[%clk 0:02:36]} 14. Bf3 {[%clk 0:02:19]}  Rfd8 {[%clk 0:02:29]} 15. Bb2 {[%clk 0:02:18]}  Rab8 {[%clk 0:02:28]} 16. Nb3 {[%clk 0:02:12]}  Rxd1+ {[%clk 0:02:05]} 17. Rxd1 {[%clk 0:02:08]}  Ne5 {[%clk 0:02:02]} 18. Bxb7 {[%clk 0:01:53]}  Rxb7 {[%clk 0:02:03]} 19. Na5 {[%clk 0:01:45]}  Rb8 {[%clk 0:01:58]} 20. Nxb5 {[%clk 0:01:31]}  Rxb5 {[%clk 0:01:00]} 21. Bxe5 {[%clk 0:01:30]}  Rxe5 {[%clk 0:01:00]} 22. Nc6 {[%clk 0:01:31]}  Re4 {[%clk 0:01:00]} 23. Nxe7+ {[%clk 0:01:26]}  Kf8 {[%clk 0:01:01]} 24. Nc6 {[%clk 0:01:15]}  Rc4 {[%clk 0:00:59]} 25. Nb8 {[%clk 0:01:05]}  Rc3 {[%clk 0:00:56]} 26. Ra1 {[%clk 0:00:55]}  a5 {[%clk 0:00:46]} 27. bxa5 {[%clk 0:00:44]}  Rc8 {[%clk 0:00:39]} 28. Rb1 {[%clk 0:00:41]}  Rc3 {[%clk 0:00:39]} 29. a6 {[%clk 0:00:29]}  Rxa3 {[%clk 0:00:39]} 30. g3 {[%clk 0:00:29]}  Nd5 {[%clk 0:00:23]} 31. Rb7 {[%clk 0:00:12]}  Ne7 {[%clk 0:00:12]} 32. a7 {[%clk 0:00:10]}  Ke8 {[%clk 0:00:06]} 33. Nd7 {[%clk 0:00:05]}  Nc8 {[%clk 0:00:03]} 34. Nb6 {[%clk 0:00:02]}  Nxb6 {[%clk 0:00:02]} 35. Rxb6 {[%clk 0:00:03]}  Rxa7 {[%clk 0:00:02]} 36. Kg2 {[%clk 0:00:04]}  Ke7 {[%clk 0:00:02]} 37. h4 {[%clk 0:00:04]}  Rd7 {[%clk 0:00:02]} 38. h5 {[%clk 0:00:04]}  h6 {[%clk 0:00:03]} 39. g4 {[%clk 0:00:04]}  Kf6 {[%clk 0:00:03]} 40. Kg3 {[%clk 0:00:05]}  Rd1 {[%clk 0:00:03]} 41. f4 {[%clk 0:00:05]}  Re1 {[%clk 0:00:03]} 42. Rb3 {[%clk 0:00:05]}  Rf1 {[%clk 0:00:03]} 43. Rc3 {[%clk 0:00:04]}  Rg1+ {[%clk 0:00:03]} 44. Kf3 {[%clk 0:00:04]}  Rf1+ {[%clk 0:00:03]} 45. Kg2 {[%clk 0:00:04]}  Ra1 {[%clk 0:00:04]} 46. e4 {[%clk 0:00:04]}  Ra2+ {[%clk 0:00:04]} 47. Kf3 {[%clk 0:00:04]}  Ra7 {[%clk 0:00:04]} 48. e5+ {[%clk 0:00:04]}  Ke7 {[%clk 0:00:05]} 49. Rc4 {[%clk 0:00:05]}  Ra3+ {[%clk 0:00:05]} 50. Kg2 {[%clk 0:00:04]}  Ra2+ {[%clk 0:00:05]} 51. Kg3 {[%clk 0:00:04]}  Ra3+ {[%clk 0:00:06]} 52. Kh4 {[%clk 0:00:05]}  Ra7 {[%clk 0:00:06]} 53. Rb4 {[%clk 0:00:04]}  Rc7 {[%clk 0:00:05]} 54. g5 {[%clk 0:00:05]}  Rc1 {[%clk 0:00:05]} 55. Rb7+ {[%clk 0:00:04]}  Kf8 {[%clk 0:00:05]} 56. Rb8+ {[%clk 0:00:04]}  Ke7 {[%clk 0:00:06]} 57. Rg8 {[%clk 0:00:03]}  Rh1+ {[%clk 0:00:05]} 58. Kg4 {[%clk 0:00:03]}  Rg1+ {[%clk 0:00:06]} 59. Kh3 {[%clk 0:00:02]}  Rh1+ {[%clk 0:00:06]} 60. Kg2 {[%clk 0:00:02]}  Rxh5 {[%clk 0:00:06]} 61. Rxg7 {[%clk 0:00:02]}  hxg5 {[%clk 0:00:06]} 62. Rxg5 {[%clk 0:00:01]}  Rh4 {[%clk 0:00:02]} 63. Kf3 {[%clk 0:00:01]}  Rh8 {[%clk 0:00:02]} 64. Ke4 {[%clk 0:00:01]}  Ra8 {[%clk 0:00:03]} 65. Rg2 {[%clk 0:00:02]}  Ra4+ {[%clk 0:00:04]} 66. Kf3 {[%clk 0:00:03]}  Ra3+ {[%clk 0:00:04]} 67. Ke4 {[%clk 0:00:04]}  Ra4+ {[%clk 0:00:05]} 68. Kf3 {[%clk 0:00:04]}  Ra7 {[%clk 0:00:05]} 69. Ke4 {[%clk 0:00:05]}  Ra3 {[%clk 0:00:05]} 70. Rd2 {[%clk 0:00:05]}  Ra4+ {[%clk 0:00:06]} 71. Ke3 {[%clk 0:00:05]} 1/2-1/2


[Site "https://www.chess.com"]

[Event "Titled Tuesday Blitz February 07 Early 2023"]
[White "Beerdsen, Thomas"]
[Black "Perez Ponsa, Federico"]
[WhiteFideId "1030108"]
[BlackFideId "117927"]
[WhiteElo "2507"]
[BlackElo "2532"]
[Result "0-1"]
[Round "07"]
[TimeControl "180+2"]
[Date "2023.02.07"]
[WhiteClock "0:00:01"]
[BlackClock "0:00:13"]

1. e4 {[%clk 0:03:00]}  c5 {[%clk 0:02:57]} 2. Nf3 {[%clk 0:03:01]}  d6 {[%clk 0:02:57]} 3. d4 {[%clk 0:03:01]}  cxd4 {[%clk 0:02:58]} 4. Nxd4 {[%clk 0:03:02]}  Nf6 {[%clk 0:02:59]} 5. Nc3 {[%clk 0:03:02]}  a6 {[%clk 0:03:00]} 6. Bg5 {[%clk 0:02:59]}  Nbd7 {[%clk 0:03:00]} 7. Qe2 {[%clk 0:02:54]}  Qa5 {[%clk 0:02:59]} 8. Bd2 {[%clk 0:02:54]}  Qb6 {[%clk 0:02:56]} 9. Nb3 {[%clk 0:02:52]}  h5 {[%clk 0:02:55]} 10. O-O-O {[%clk 0:02:51]}  e6 {[%clk 0:02:48]} 11. h3 {[%clk 0:02:48]}  Qc7 {[%clk 0:02:45]} 12. a4 {[%clk 0:02:43]}  b6 {[%clk 0:02:42]} 13. Rg1 {[%clk 0:02:40]}  h4 {[%clk 0:02:30]} 14. g4 {[%clk 0:02:41]}  hxg3 {[%clk 0:02:30]} 15. Rxg3 {[%clk 0:02:40]}  Bb7 {[%clk 0:02:30]} 16. f4 {[%clk 0:02:39]}  Rc8 {[%clk 0:02:29]} 17. Kb1 {[%clk 0:02:39]}  Nxe4 {[%clk 0:02:21]} 18. Re3 {[%clk 0:02:40]}  d5 {[%clk 0:02:10]} 19. f5 {[%clk 0:02:23]}  exf5 {[%clk 0:02:01]} 20. Nd4 {[%clk 0:02:23]}  g6 {[%clk 0:01:59]} 21. Be1 {[%clk 0:02:04]}  Nf6 {[%clk 0:01:53]} 22. h4 {[%clk 0:01:57]}  Bg7 {[%clk 0:01:32]} 23. Bh3 {[%clk 0:01:51]}  Kf8 {[%clk 0:01:24]} 24. Nxe4 {[%clk 0:01:43]}  Nxe4 {[%clk 0:01:15]} 25. Bb4+ {[%clk 0:01:41]}  Kg8 {[%clk 0:01:15]} 26. Bxf5 {[%clk 0:01:39]}  Re8 {[%clk 0:00:56]} 27. Qg4 {[%clk 0:01:03]}  Bc8 {[%clk 0:00:46]} 28. Bxc8 {[%clk 0:00:32]}  Qxc8 {[%clk 0:00:46]} 29. Qg2 {[%clk 0:00:22]}  Rxh4 {[%clk 0:00:41]} 30. Ba3 {[%clk 0:00:20]}  Nd2+ {[%clk 0:00:25]} 31. Rxd2 {[%clk 0:00:15]}  Rxe3 {[%clk 0:00:22]} 32. Nb3 {[%clk 0:00:15]}  d4 {[%clk 0:00:17]} 33. Ka2 {[%clk 0:00:15]}  Qc4 {[%clk 0:00:16]} 34. Qa8+ {[%clk 0:00:14]}  Kh7 {[%clk 0:00:17]} 35. a5 {[%clk 0:00:14]}  bxa5 {[%clk 0:00:16]} 36. Kb1 {[%clk 0:00:07]}  Re1+ {[%clk 0:00:15]} 37. Nc1 {[%clk 0:00:06]}  Rhh1 {[%clk 0:00:13]} 38. b3 {[%clk 0:00:07]}  Qf1 {[%clk 0:00:12]} 39. Ka2 {[%clk 0:00:03]}  Rxc1 {[%clk 0:00:12]} 40. Bxc1 {[%clk 0:00:01]}  Qxc1 {[%clk 0:00:13]} 0-1


[Site "https://www.chess.com"]